fUST/lending_fUST_20250719
["ID","MTS","AMOUNT","RATE_DAILY","PERIOD"]
[373148328,1752883847641,-460.0,0.00017808,2]
[373148329,1752883847651,-460.0,0.00017808,2]
[373148330,1752883847660,-460.0,0.00017808,2]
[373148331,1752883847670,-460.0,0.00017808,2]
[373148332,1752883847679,-460.0,0.00017808,2]
[373148333,1752883847688,-460.0,0.00017808,2]
[373148334,1752883847699,-1036.13,0.00017808,2]
[373148335,1752883847708,-460.0,0.00017808,2]
[373148336,1752883847718,-460.0,0.00017808,2]
[373148337,1752883847729,-2392.55,0.00017808,2]
[373148338,1752883847738,-460.0,0.00017808,2]
[373148339,1752883847748,-2683.71,0.00017808,2]
[373148340,1752883847757,-460.0,0.00017808,2]
[373148341,1752883847767,-522.77,0.00017808,2]
[373148342,1752883847776,-879.52,0.00017808,2]
[373148343,1752883847787,-460.0,0.00017808,2]
[373148344,1752883847799,-460.0,0.00017808,2]
[373148345,1752883847809,-1720.33,0.00017808,2]
[373148346,1752883847818,-460.0,0.00017808,2]
[373148347,1752883847827,-460.0,0.00017808,2]
[373148348,1752883847837,-460.0,0.00017808,2]
[373148349,1752883847847,-460.0,0.00017808,2]
[373148350,1752883847858,-528.48,0.00017808,2]
[373148351,1752883847867,-460.0,0.00017808,2]
[373148352,1752883847877,-460.0,0.00017808,2]
[373148353,1752883847887,-460.0,0.00017808,2]
[373148354,1752883847897,-326.33617649,0.00017808,2]
[373148355,1752883847906,-460.0,0.00017808,2]
[373148356,1752883847917,-557.03,0.00017808,2]
[373148357,1752883847927,-291.26244911,0.00017808,2]
[373148358,1752883847936,-1322.91,0.00017808,2]
[373148359,1752883847946,-460.0,0.00017808,2]
[373148360,1752883847956,-460.0,0.00017808,2]
[373148361,1752883847966,-460.0,0.00017808,2]
[373148362,1752883847976,-460.0,0.00017808,2]
[373148363,1752883847986,-460.0,0.00017808,2]
[373148364,1752883847997,-460.0,0.00017808,2]
[373148365,1752883848007,-460.0,0.00017808,2]
[373148366,1752883848017,-460.0,0.00017808,2]
[373148367,1752883848026,-460.0,0.00017808,2]
[373148368,1752883848036,-460.0,0.00017808,2]
[373148369,1752883848045,-460.0,0.00017808,2]
[373148370,1752883848055,-460.0,0.00017808,2]
[373148371,1752883848064,-590.3,0.00017808,2]
[373148372,1752883848074,-460.0,0.00017808,2]
[373148373,1752883848083,-1972.52,0.00017808,2]
[373148374,1752883848092,-932.15,0.00017808,2]
[373148375,1752883848102,-460.0,0.00017808,2]
[373148376,1752883848112,-460.0,0.00017808,2]
[373148377,1752883848121,-460.0,0.00017808,2]
[373148378,1752883848131,-1286.44,0.00017808,2]
[373148379,1752883848141,-460.0,0.00017808,2]
[373148380,1752883848150,-460.0,0.00017808,2]
[373148381,1752883848159,-1847.56,0.00017808,2]
[373148382,1752883848168,-460.0,0.00017808,2]
[373148383,1752883848178,-2497.17,0.00017808,2]
[373148384,1752883848188,-460.0,0.00017808,2]
[373148385,1752883848197,-460.0,0.00017808,2]
[373148386,1752883848207,-460.0,0.00017808,2]
[373148387,1752883848216,-460.0,0.00017808,2]
[373148389,1752883848226,-460.0,0.00017808,2]
[373148391,1752883848235,-460.0,0.00017808,2]
[373148394,1752883848245,-460.0,0.00017808,2]
[373148395,1752883848255,-460.0,0.00017808,2]
[373148398,1752883848265,-1125.02,0.00017808,2]
[373148399,1752883848275,-460.0,0.00017808,2]
[373148401,1752883848284,-460.0,0.00017808,2]
[373148404,1752883848293,-460.0,0.00017808,2]
[373148405,1752883848302,-1171.49,0.00017808,2]
[373148407,1752883848312,-460.0,0.00017808,2]
[373148409,1752883848321,-460.0,0.00017808,2]
[373148411,1752883848331,-460.0,0.00017808,2]
[373148413,1752883848340,-460.0,0.00017808,2]
[373148415,1752883848350,-460.0,0.00017808,2]
[373148417,1752883848359,-460.0,0.00017808,2]
[373148419,1752883848369,-460.0,0.00017808,2]
[373148421,1752883848378,-1124.77,0.00017808,2]
[373148423,1752883848387,-460.0,0.00017808,2]
[373148425,1752883848397,-551.09,0.00017808,2]
[373148427,1752883848407,-460.0,0.00017808,2]
[373148429,1752883848416,-460.0,0.00017808,2]
[373148431,1752883848426,-460.0,0.00017808,2]
[373148433,1752883848435,-460.0,0.00017808,2]
[373148435,1752883848444,-460.0,0.00017808,2]
[373148436,1752883848454,-1001.3739625,0.00017814,2]
[373148437,1752883848464,-1410.43152616,0.00017831,2]
[373148438,1752883848474,-3048.14937814,0.00017837,2]
[373148440,1752883848484,-500.0,0.00017868,2]
[373148442,1752883848494,-500.68768249,0.00017881,2]
[373148444,1752883848504,-420.0,0.00017962,2]
[373148446,1752883848514,-1680.0,0.00017963,2]
[373148448,1752883848523,-1774.52,0.00018072,3]
[373148450,1752883848533,-887.26,0.00018072,3]
[373148452,1752883848542,-443.62,0.00018072,3]
[373148454,1752883848552,-151.0,0.00018072,2]
[373148456,1752883848561,-151.0,0.00018072,2]
[373148458,1752883848576,-151.0,0.00018072,2]
[373148460,1752883848585,-151.0,0.00018072,2]
[373148462,1752883848594,-460.0,0.00018082,2]
[373148464,1752883848604,-460.0,0.00018082,2]
[373148466,1752883848614,-460.0,0.00018082,2]
[373148468,1752883848625,-460.0,0.00018082,2]
[373148470,1752883848636,-460.0,0.00018082,2]
[373148472,1752883848647,-460.0,0.00018082,2]
[373148474,1752883848659,-460.0,0.00018082,2]
[373148477,1752883848669,-460.0,0.00018082,2]
[373148479,1752883848679,-460.0,0.00018082,2]
[373148480,1752883848688,-460.0,0.00018082,2]
[373148482,1752883848698,-529.22445917,0.00018082,2]
[373148484,1752883848708,-460.0,0.00018082,2]
[373148486,1752883848718,-460.0,0.00018082,2]
[373148489,1752883848728,-460.0,0.00018082,2]
[373148491,1752883848738,-460.0,0.00018082,2]
[373148493,1752883848748,-1036.13,0.00018082,2]
[373148494,1752883848758,-460.0,0.00018082,2]
[373148496,1752883848770,-460.0,0.00018082,2]
[373148499,1752883848779,-2392.55,0.00018082,2]
[373148500,1752883848789,-169.97215349,0.00018082,2]
[373148502,1752883848798,-2683.71,0.00018082,2]
[373148505,1752883848808,-879.52,0.00018082,2]
[373148507,1752883848818,-464.20634618,0.00018082,2]
[373148509,1752883848827,-1720.33,0.00018082,2]
[373148510,1752883848837,-460.0,0.00018082,2]
[373148512,1752883848846,-460.0,0.00018082,2]
[373148514,1752883848856,-460.0,0.00018082,2]
[373148517,1752883848866,-460.0,0.00018082,2]
[373148519,1752883848875,-528.48,0.00018082,2]
[373148520,1752883848884,-460.0,0.00018082,2]
[373148522,1752883848894,-460.0,0.00018082,2]
[373148525,1752883848904,-460.0,0.00018082,2]
[373148526,1752883848913,-557.03,0.00018082,2]
[373148528,1752883848922,-1322.91,0.00018082,2]
[373148530,1752883848931,-460.0,0.00018082,2]
[373148532,1752883848940,-460.0,0.00018082,2]
[373148534,1752883848949,-330.68105287,0.00018082,2]
[373148536,1752883848958,-460.0,0.00018082,2]
[373148538,1752883848967,-460.0,0.00018082,2]
[373148540,1752883848976,-460.0,0.00018082,2]
[373148542,1752883848986,-460.0,0.00018082,2]
[373148544,1752883848995,-460.0,0.00018082,2]
[373148546,1752883849004,-460.0,0.00018082,2]
[373148548,1752883849014,-460.0,0.00018082,2]
[373148550,1752883849024,-460.0,0.00018082,2]
[373148552,1752883849033,-590.3,0.00018082,2]
[373148554,1752883849042,-460.0,0.00018082,2]
[373148556,1752883849052,-1972.52,0.00018082,2]
[373148558,1752883849061,-932.15,0.00018082,2]
[373148560,1752883849071,-460.0,0.00018082,2]
[373148562,1752883849080,-460.0,0.00018082,2]
[373148564,1752883849090,-460.0,0.00018082,2]
[373148566,1752883849099,-1286.44,0.00018082,2]
[373148568,1752883849109,-460.0,0.00018082,2]
[373148570,1752883849119,-460.0,0.00018082,2]
[373148572,1752883849128,-1847.56,0.00018082,2]
[373148574,1752883849138,-2497.17,0.00018082,2]
[373148576,1752883849147,-460.0,0.00018082,2]
[373148578,1752883849157,-460.0,0.00018082,2]
[373148580,1752883849167,-460.0,0.00018082,2]
[373148582,1752883849176,-325.77279094,0.00018082,2]
[373148584,1752883849185,-460.0,0.00018082,2]
[373148594,1752883849271,-460.0,0.00018082,2]
[373148596,1752883849281,-1125.02,0.00018082,2]
[373148598,1752883849291,-460.0,0.00018082,2]
[373148599,1752883849300,-460.0,0.00018082,2]
[373148601,1752883849310,-460.0,0.00018082,2]
[373148603,1752883849319,-1171.49,0.00018082,2]
[373148606,1752883849331,-460.0,0.00018082,2]
[373148608,1752883849340,-159.61854329,0.00018082,2]
[373148610,1752883849350,-460.0,0.00018082,2]
[373148612,1752883849359,-460.0,0.00018082,2]
[373148614,1752883849368,-460.0,0.00018082,2]
[373148616,1752883849378,-460.0,0.00018082,2]
[373148618,1752883849388,-460.0,0.00018082,2]
[373148620,1752883849397,-1124.77,0.00018082,2]
[373148622,1752883849407,-460.0,0.00018082,2]
[373148624,1752883849416,-551.09,0.00018082,2]
[373148626,1752883849425,-460.0,0.00018082,2]
[373148628,1752883849434,-460.0,0.00018082,2]
[373148630,1752883849444,-460.0,0.00018082,2]
[373148632,1752883849453,-460.0,0.00018082,2]
[373148634,1752883849462,-1500.0,0.00018133,2]
[373148636,1752883849472,-260.0,0.00018135,2]
[373148637,1752883849482,-1410.43152616,0.00018141,2]
[373148640,1752883849492,-500.0,0.00018238,2]
[373148641,1752883849501,-1000.0,0.00018256,2]
[373148643,1752883849512,-25000.0,0.0001833,2]
[373148645,1752883849522,-151.0,0.0001833,2]
[373148648,1752883849532,-151.0,0.0001833,2]
[373148650,1752883849543,-460.0,0.00018356,2]
[373148651,1752883849553,-460.0,0.00018356,2]
[373148653,1752883849564,-460.0,0.00018356,2]
[373148655,1752883849575,-460.0,0.00018356,2]
[373148657,1752883849585,-460.0,0.00018356,2]
[373148659,1752883849595,-460.0,0.00018356,2]
[373148661,1752883849604,-460.0,0.00018356,2]
[373148663,1752883849614,-514.44,0.00018356,2]
[373148665,1752883849623,-460.0,0.00018356,2]
[373148667,1752883849633,-521.40262785,0.00018356,2]
[373148669,1752883849643,-460.0,0.00018356,2]
[373148671,1752883849657,-469.85442136,0.00018356,2]
[373148673,1752883849667,-1036.13,0.00018356,2]
[373148675,1752883849676,-460.0,0.00018356,2]
[373148678,1752883849686,-460.0,0.00018356,2]
[373148680,1752883849695,-2392.55,0.00018356,2]
[373148681,1752883849704,-2683.71,0.00018356,2]
[373148682,1752883849714,-879.52,0.00018356,2]
[373148683,1752883849724,-1720.33,0.00018356,2]
[373148684,1752883849734,-460.0,0.00018356,2]
[373148685,1752883849743,-460.0,0.00018356,2]
[373148686,1752883849753,-460.0,0.00018356,2]
[373148687,1752883849762,-460.0,0.00018356,2]
[373148688,1752883849772,-528.48,0.00018356,2]
[373148689,1752883849782,-460.0,0.00018356,2]
[373148690,1752883849791,-460.0,0.00018356,2]
[373148691,1752883849801,-170.17812429,0.00018356,2]
[373148692,1752883849811,-557.03,0.00018356,2]
[373148693,1752883849820,-1322.91,0.00018356,2]
[373148694,1752883849830,-460.0,0.00018356,2]
[373148695,1752883849839,-460.0,0.00018356,2]
[373148696,1752883849849,-460.0,0.00018356,2]
[373148697,1752883849859,-460.0,0.00018356,2]
[373148698,1752883849868,-460.0,0.00018356,2]
[373148699,1752883849878,-460.0,0.00018356,2]
[373148700,1752883849887,-460.0,0.00018356,2]
[373148701,1752883849897,-460.0,0.00018356,2]
[373148702,1752883849907,-460.0,0.00018356,2]
[373148703,1752883849916,-460.0,0.00018356,2]
[373148704,1752883849926,-590.3,0.00018356,2]
[373148705,1752883849935,-460.0,0.00018356,2]
[373148706,1752883849945,-1972.52,0.00018356,2]
[373148707,1752883849955,-932.15,0.00018356,2]
[373148708,1752883849964,-460.0,0.00018356,2]
[373148709,1752883849974,-460.0,0.00018356,2]
[373148710,1752883849983,-460.0,0.00018356,2]
[373148711,1752883849993,-460.0,0.00018356,2]
[373148712,1752883850002,-1286.44,0.00018356,2]
[373148713,1752883850014,-1847.56,0.00018356,2]
[373148714,1752883850023,-460.0,0.00018356,2]
[373148715,1752883850032,-2497.17,0.00018356,2]
[373148716,1752883850041,-460.0,0.00018356,2]
[373148717,1752883850050,-460.0,0.00018356,2]
[373148718,1752883850059,-460.0,0.00018356,2]
[373148719,1752883850068,-460.0,0.00018356,2]
[373148720,1752883850078,-1125.02,0.00018356,2]
[373148721,1752883850087,-460.0,0.00018356,2]
[373148722,1752883850096,-460.0,0.00018356,2]
[373148723,1752883850106,-460.0,0.00018356,2]
[373148724,1752883850116,-1171.49,0.00018356,2]
[373148725,1752883850125,-460.0,0.00018356,2]
[373148726,1752883850135,-286.94368822,0.00018356,2]
[373148727,1752883850145,-460.0,0.00018356,2]
[373148728,1752883850154,-460.0,0.00018356,2]
[373148729,1752883850164,-460.0,0.00018356,2]
[373148730,1752883850174,-1124.77,0.00018356,2]
[373148731,1752883850183,-460.0,0.00018356,2]
[373148732,1752883850192,-551.09,0.00018356,2]
[373148733,1752883850201,-151.0,0.00018356,2]
[373148734,1752883850211,-460.0,0.00018356,2]
[373148735,1752883850220,-460.0,0.00018356,2]
[373148736,1752883850230,-151.0,0.00018429,2]
[373148737,1752883850240,-151.0,0.00018429,2]
[373148738,1752883850249,-151.0,0.00018429,2]
[373148739,1752883850259,-151.0,0.00018429,2]
[373148740,1752883850269,-151.0,0.00018429,2]
[373148741,1752883850279,-151.0,0.00018429,2]
[373148742,1752883850288,-151.0,0.00018429,2]
[373148743,1752883850297,-151.0,0.00018429,2]
[373148744,1752883850307,-151.0,0.00018429,2]
[373148745,1752883850316,-1410.43152616,0.00018452,2]
[373148746,1752883850326,-500.0,0.00018531,2]
[373148747,1752883850336,-153.10678296,0.0001863,2]
[373148748,1752883850345,-460.0,0.0001863,2]
[373148749,1752883850355,-460.0,0.0001863,2]
[373148750,1752883850365,-460.0,0.0001863,2]
[373148751,1752883850374,-460.0,0.0001863,2]
[373148752,1752883850383,-460.0,0.0001863,2]
[373148753,1752883850393,-460.0,0.0001863,2]
[373148754,1752883850401,-460.0,0.0001863,2]
[373148755,1752883850411,-460.0,0.0001863,2]
[373148756,1752883850421,-1036.13,0.0001863,2]
[373148757,1752883850430,-460.0,0.0001863,2]
[373148758,1752883850440,-460.0,0.0001863,2]
[373148759,1752883850449,-2392.55,0.0001863,2]
[373148760,1752883850459,-2683.71,0.0001863,2]
[373148761,1752883850469,-879.52,0.0001863,2]
[373148762,1752883850479,-1720.33,0.0001863,2]
[373148763,1752883850488,-460.0,0.0001863,2]
[373148764,1752883850498,-460.0,0.0001863,2]
[373148765,1752883850509,-460.0,0.0001863,2]
[373148766,1752883850520,-463.71295958,0.0001863,2]
[373148767,1752883850530,-528.48,0.0001863,2]
[373148768,1752883850540,-460.0,0.0001863,2]
[373148770,1752883850549,-460.0,0.0001863,2]
[373148772,1752883850559,-557.03,0.0001863,2]
[373148774,1752883850569,-1322.91,0.0001863,2]
[373148775,1752883850582,-460.0,0.0001863,2]
[373148776,1752883850591,-341.93330316,0.0001863,2]
[373148777,1752883850601,-460.0,0.0001863,2]
[373148778,1752883850611,-460.0,0.0001863,2]
[373148779,1752883850621,-460.0,0.0001863,2]
[373148780,1752883850631,-460.0,0.0001863,2]
[373148781,1752883850641,-460.0,0.0001863,2]
[373148782,1752883850652,-460.0,0.0001863,2]
[373148783,1752883850662,-460.0,0.0001863,2]
[373148784,1752883850672,-460.0,0.0001863,2]
[373148785,1752883850681,-590.3,0.0001863,2]
[373148786,1752883850691,-460.0,0.0001863,2]
[373148787,1752883850700,-1972.52,0.0001863,2]
[373148788,1752883850710,-932.15,0.0001863,2]
[373148789,1752883850720,-460.0,0.0001863,2]
[373148790,1752883850730,-460.0,0.0001863,2]
[373148791,1752883850740,-460.0,0.0001863,2]
[373148792,1752883850750,-1286.44,0.0001863,2]
[373148793,1752883850759,-1847.56,0.0001863,2]
[373148794,1752883850769,-460.0,0.0001863,2]
[373148795,1752883850779,-2497.17,0.0001863,2]
[373148796,1752883850788,-460.0,0.0001863,2]
[373148797,1752883850798,-460.0,0.0001863,2]
[373148798,1752883850808,-460.0,0.0001863,2]
[373148799,1752883850817,-460.0,0.0001863,2]
[373148800,1752883850827,-460.0,0.0001863,2]
[373148801,1752883850837,-1125.02,0.0001863,2]
[373148802,1752883850847,-460.0,0.0001863,2]
[373148803,1752883850925,-460.0,0.0001863,2]
[373148804,1752883850943,-1171.49,0.0001863,2]
[373148805,1752883850952,-460.0,0.0001863,2]
[373148806,1752883850963,-460.0,0.0001863,2]
[373148807,1752883850972,-460.0,0.0001863,2]
[373148808,1752883850982,-460.0,0.0001863,2]
[373148809,1752883850991,-1124.77,0.0001863,2]
[373148810,1752883851001,-460.0,0.0001863,2]
[373148811,1752883851012,-551.09,0.0001863,2]
[373148812,1752883851021,-460.0,0.0001863,2]
[373148813,1752883851031,-1000.0,0.00018681,2]
[373148814,1752883851041,-360.0,0.00018683,2]
[373148815,1752883851050,-297.902845,0.00018731,2]
[373148816,1752883851059,-1410.43152616,0.00018762,2]
[373148817,1752883851069,-1442.18807593,0.000189,2]
[373148818,1752883851078,-302.8183302,0.000189,2]
[373148819,1752883851089,-460.0,0.00018904,2]
[373148820,1752883851098,-460.0,0.00018904,2]
[373148821,1752883851107,-460.0,0.00018904,2]
[373148822,1752883851117,-460.0,0.00018904,2]
[373148823,1752883851126,-460.0,0.00018904,2]
[373148824,1752883851136,-151.0,0.00018904,2]
[373148825,1752883851145,-151.0,0.00018904,2]
[373148826,1752883851155,-398.66565097,0.00018904,2]
[373148827,1752883851165,-151.0,0.00018904,2]
[373148828,1752883851175,-460.0,0.00018904,2]
[373148829,1752883851184,-151.0,0.00018904,2]
[373148830,1752883851194,-151.0,0.00018904,2]
[373148831,1752883851204,-1036.13,0.00018904,2]
[373148832,1752883851213,-460.0,0.00018904,2]
[373148833,1752883851223,-2392.55,0.00018904,2]
[373148834,1752883851232,-2683.71,0.00018904,2]
[373148835,1752883851242,-879.52,0.00018904,2]
[373148836,1752883851251,-1720.33,0.00018904,2]
[373148837,1752883851263,-460.0,0.00018904,2]
[373148838,1752883851272,-460.0,0.00018904,2]
[373148839,1752883851282,-460.0,0.00018904,2]
[373148840,1752883851291,-528.48,0.00018904,2]
[373148841,1752883851301,-460.0,0.00018904,2]
[373148842,1752883851310,-460.0,0.00018904,2]
[373148843,1752883851320,-557.03,0.00018904,2]
[373148844,1752883851331,-1322.91,0.00018904,2]
[373148845,1752883851342,-460.0,0.00018904,2]
[373148846,1752883851351,-460.0,0.00018904,2]
[373148847,1752883851360,-460.0,0.00018904,2]
[373148848,1752883851370,-460.0,0.00018904,2]
[373148849,1752883851379,-460.0,0.00018904,2]
[373148850,1752883851389,-460.0,0.00018904,2]
[373148851,1752883851399,-460.0,0.00018904,2]
[373148852,1752883851409,-460.0,0.00018904,2]
[373148853,1752883851418,-590.3,0.00018904,2]
[373148854,1752883851428,-460.0,0.00018904,2]
[373148855,1752883851437,-1972.52,0.00018904,2]
[373148856,1752883851446,-932.15,0.00018904,2]
[373148857,1752883851455,-460.0,0.00018904,2]
[373148858,1752883851464,-460.0,0.00018904,2]
[373148859,1752883851474,-460.0,0.00018904,2]
[373148860,1752883851483,-1286.44,0.00018904,2]
[373148861,1752883851492,-1847.56,0.00018904,2]
[373148862,1752883851502,-484.75393404,0.00018904,2]
[373148863,1752883851517,-2497.17,0.00018904,2]
[373148864,1752883851526,-460.0,0.00018904,2]
[373148865,1752883851535,-460.0,0.00018904,2]
[373148866,1752883851545,-248.78647143,0.00018904,2]
[373148867,1752883851556,-460.0,0.00018904,2]
[373148868,1752883851566,-460.0,0.00018904,2]
[373148869,1752883851578,-1125.02,0.00018904,2]
[373148870,1752883851589,-460.0,0.00018904,2]
[373148871,1752883851598,-460.0,0.00018904,2]
[373148872,1752883851609,-1171.49,0.00018904,2]
[373148873,1752883851619,-460.0,0.00018904,2]
[373148874,1752883851628,-460.0,0.00018904,2]
[373148875,1752883851637,-460.0,0.00018904,2]
[373148876,1752883851650,-151.0,0.00018904,2]
[373148877,1752883851659,-460.0,0.00018904,2]
[373148878,1752883851669,-1124.77,0.00018904,2]
[373148879,1752883851679,-151.0,0.00018904,2]
[373148880,1752883851689,-551.09,0.00018904,2]
[373148881,1752883851698,-151.0,0.00018904,2]
[373148882,1752883851708,-571.25290165,0.00018904,2]
[373148883,1752883851717,-1410.43152616,0.00019072,2]
[373148884,1752883851726,-302.8183302,0.00019089,2]
[373148885,1752883851736,-215.0738,0.00019151,2]
[373148886,1752883851746,-189.13204522,0.00019178,2]
[373148887,1752883851755,-460.0,0.00019178,2]
[373148888,1752883851769,-460.0,0.00019178,2]
[373148889,1752883851778,-460.0,0.00019178,2]
[373148890,1752883851788,-460.0,0.00019178,2]
[373148891,1752883851798,-1036.13,0.00019178,2]
[373148892,1752883851808,-460.0,0.00019178,2]
[373148893,1752883851817,-2392.55,0.00019178,2]
[373148894,1752883851827,-2683.71,0.00019178,2]
[373148895,1752883851837,-879.52,0.00019178,2]
[373148896,1752883851846,-1720.33,0.00019178,2]
[373148897,1752883851857,-460.0,0.00019178,2]
[373148898,1752883851866,-460.0,0.00019178,2]
[373148899,1752883851876,-528.48,0.00019178,2]
[373148900,1752883851885,-460.0,0.00019178,2]
[373148901,1752883851895,-460.0,0.00019178,2]
[373148902,1752883851904,-557.03,0.00019178,2]
[373148903,1752883851913,-1322.91,0.00019178,2]
[373148904,1752883851923,-460.0,0.00019178,2]
[373148905,1752883851934,-460.0,0.00019178,2]
[373148906,1752883851943,-460.0,0.00019178,2]
[373148907,1752883851953,-460.0,0.00019178,2]
[373148908,1752883851963,-460.0,0.00019178,2]
[373148909,1752883851972,-460.0,0.00019178,2]
[373148910,1752883851981,-590.3,0.00019178,2]
[373148911,1752883851991,-460.0,0.00019178,2]
[373148912,1752883852001,-1972.52,0.00019178,2]
[373148913,1752883852013,-932.15,0.00019178,2]
[373148914,1752883852023,-460.0,0.00019178,2]
[373148915,1752883852032,-460.0,0.00019178,2]
[373148916,1752883852042,-471.57,0.00019178,2]
[373148917,1752883852052,-1286.44,0.00019178,2]
[373148918,1752883852061,-1847.56,0.00019178,2]
[373148919,1752883852071,-2497.17,0.00019178,2]
[373148920,1752883852080,-460.0,0.00019178,2]
[373148921,1752883852089,-460.0,0.00019178,2]
[373148922,1752883852099,-460.0,0.00019178,2]
[373148923,1752883852108,-460.0,0.00019178,2]
[373148924,1752883852117,-1125.02,0.00019178,2]
[373148925,1752883852127,-460.0,0.00019178,2]
[373148926,1752883852138,-460.0,0.00019178,2]
[373148927,1752883852148,-1171.49,0.00019178,2]
[373148928,1752883852158,-460.0,0.00019178,2]
[373148929,1752883852168,-460.0,0.00019178,2]
[373148930,1752883852179,-460.0,0.00019178,2]
[373148931,1752883852190,-460.0,0.00019178,2]
[373148932,1752883852199,-1124.77,0.00019178,2]
[373148933,1752883852208,-551.09,0.00019178,2]
[373148934,1752883852218,-170.819958,0.00019178,2]
[373148935,1752883852229,-500.0,0.00019186,2]
[373148936,1752883852239,-206.0,0.0001923,2]
[373148937,1752883852249,-460.0,0.00019231,2]
[373148938,1752883852258,-2920.69883473,0.00019256,2]
[373148939,1752883852268,-500.0,0.00019264,2]
[373148940,1752883852278,-500.0,0.00019264,2]
[373148941,1752883852287,-500.0,0.00019264,2]
[373148942,1752883852296,-500.0,0.00019264,2]
[373148943,1752883852306,-500.0,0.00019264,2]
[373148944,1752883852315,-500.0,0.00019264,2]
[373148945,1752883852325,-305.26285468,0.00019275,2]
[373148946,1752883852335,-170.16000748,0.00019275,2]
[373148947,1752883852344,-150.39478184,0.00019275,7]
[373148948,1752883852354,-302.8183302,0.00019278,2]
[373148949,1752883852363,-5823.98589143,0.00019331,2]
[373148950,1752883852373,-1410.43152616,0.00019383,2]
[373148951,1752883852383,-34369.55945393,0.00019392,2]
[373148952,1752883852393,-151.0,0.00019392,2]
[373148953,1752883852403,-460.0,0.00019452,2]
[373148954,1752883852481,-151.0,0.00019452,2]
[373148955,1752883852491,-151.0,0.00019452,2]
[373148956,1752883852501,-151.0,0.00019452,2]
[373148957,1752883852512,-151.0,0.00019452,2]
[373148958,1752883852521,-460.0,0.00019452,2]
[373148959,1752883852531,-492.212,0.00019452,2]
[373148960,1752883852540,-151.0,0.00019452,2]
[373148961,1752883852550,-1036.13,0.00019452,2]
[373148962,1752883852560,-460.0,0.00019452,2]
[373148963,1752883852576,-2392.55,0.00019452,2]
[373148964,1752883852585,-2683.71,0.00019452,2]
[373148965,1752883852595,-879.52,0.00019452,2]
[373148966,1752883852604,-151.0,0.00019452,2]
[373148967,1752883852615,-151.0,0.00019452,2]
[373148968,1752883852624,-1720.33,0.00019452,2]
[373148969,1752883852634,-460.0,0.00019452,2]
[373148970,1752883852643,-460.0,0.00019452,2]
[373148971,1752883852653,-528.48,0.00019452,2]
[373148972,1752883852663,-460.0,0.00019452,2]
[373148973,1752883852673,-151.0,0.00019452,2]
[373148974,1752883852682,-151.0,0.00019452,2]
[373148975,1752883852692,-557.03,0.00019452,2]
[373148976,1752883852702,-1322.91,0.00019452,2]
[373148977,1752883852712,-460.0,0.00019452,2]
[373148978,1752883852722,-487.87,0.00019452,2]
[373148979,1752883852732,-460.0,0.00019452,2]